bitfinex/quotes_ETHUSD_20251017
["timestamp","ask_amount","ask_price","bid_price","bid_amount"]
[1760686216470,1.8383806,3790.8,3789.5,31.67375591]
[1760686216678,0.1691,3792.2,3790.7,1.9508]
[1760686216679,2.823,3791.7,3790.7,1.9508]
[1760686216902,3.2596,3791.6,3790.2,0.2228]
[1760686217103,2.823,3791.5,3789.6,2.63247953]
[1760686217309,0.05,3791.3,3789.0,0.2228]
[1760686217496,0.4366,3791.2,3789.3,2.63900984]
[1760686217716,0.2363,3791.8,3790.2,28.91719748]
[1760686217916,2.823,3791.7,3790.7,28.91719748]
[1760686218227,2.823,3791.7,3790.3,2.3579]
[1760686218228,1.908,3791.6,3791.2,28.91719748]
[1760686218373,2.823,3791.5,3791.3,0.6299]
[1760686218578,2.008,3791.4,3790.3,0.1702]
[1760686218778,2.8144,3791.3,3789.2,0.5774]
[1760686218979,0.6336,3791.1,3789.2,0.5774]
[1760686219283,0.6336,3790.9,3789.6,28.91719748]
[1760686219558,2.823,3790.8,3789.7,0.4597]
[1760686219734,2.823,3790.8,3789.6,28.91719748]
[1760686220032,0.6336,3790.7,3789.3,2.63247953]
[1760686220191,0.6336,3790.7,3789.2,1.8457]
[1760686220523,2.823,3790.8,3789.3,0.4597]
[1760686220719,0.04600226,3790.4,3789.3,0.4597]
[1760686221021,0.04600226,3790.4,3789.2,0.1177]
[1760686221830,2.8023,3790.3,3788.4,0.2228]
[1760686222116,0.6336,3789.2,3788.0,0.1702]
[1760686222291,0.6336,3789.0,3788.0,0.1702]
[1760686222475,2.823,3789.1,3788.0,0.1702]
[1760686222676,2.823,3789.1,3788.1,2.63984583]
[1760686222880,0.04601663,3789.9,3788.2,0.4341]
[1760686223111,0.257,3789.8,3788.7,28.91719748]
[1760686223374,0.257,3789.8,3789.7,4.48443129]
[1760686223574,0.257,3789.8,3789.7,4.91853129]
[1760686223740,1.189,3790.5,3789.7,3.0355367]
[1760686223942,1.189,3790.5,3790.4,31.72564146]
[1760686224159,0.4407,3792.2,3790.9,2.63789048]
[1760686224362,0.4407,3792.2,3790.5,1.728]
[1760686224563,0.4407,3792.2,3790.6,2.63804224]
[1760686224764,1.3586,3792.6,3790.4,0.1702]
[1760686224963,0.4407,3792.1,3790.4,0.1702]
[1760686225478,0.4407,3792.1,3790.4,0.6043]
[1760686225680,0.04598865,3791.7,3790.4,0.6043]
[1760686225840,2.823,3791.6,3790.4,0.6043]
[1760686226249,2.823,3791.6,3790.4,0.1702]
[1760686226770,2.823,3791.6,3790.5,2.1621]
[1760686226976,2.823,3791.6,3791.3,2.63761464]
[1760686227175,2.823,3791.6,3791.5,0.1965]
[1760686227751,2.823,3791.6,3790.4,0.1702]
[1760686228074,2.823,3791.6,3790.4,0.6043]
[1760686228281,2.823,3791.6,3790.7,2.63803519]
[1760686228587,2.823,3791.6,3790.8,2.63793523]
[1760686228771,2.823,3791.6,3790.6,28.91719748]
[1760686229171,2.823,3791.6,3790.6,31.55529771]
[1760686229388,2.823,3791.6,3790.6,28.91719748]
[1760686229970,2.823,3791.6,3790.9,2.6378778]
[1760686230293,2.823,3791.6,3791.5,2.83397857]
[1760686230586,2.823,3791.6,3791.5,4.99607857]
[1760686230966,1.189,3792.6,3791.7,1.728]
[1760686231169,1.189,3792.6,3792.1,31.55425512]
[1760686231368,1.189,3792.6,3792.2,0.6306]
[1760686231571,0.21560852,3793.1,3792.3,2.1621]
[1760686231756,0.21560852,3793.1,3792.7,2.63664407]
[1760686231961,0.21560852,3793.1,3792.6,28.91719748]
[1760686232298,0.469,3792.7,3792.2,1.9245]
[1760686232589,0.469,3792.7,3790.5,2.87140301]
[1760686232590,0.469,3792.7,3791.2,29.11369748]
[1760686232775,0.469,3792.7,3791.4,1.728]
[1760686233099,0.469,3792.7,3791.3,2.1621]
[1760686233100,0.04597523,3792.6,3791.3,2.1621]
[1760686233400,0.04597523,3792.6,3791.2,0.1965]
[1760686233581,0.04597523,3792.6,3789.9,31.55573919]
[1760686233582,1.0367,3792.5,3789.9,31.55573919]
[1760686233896,1.0367,3792.5,3790.5,1.728]
[1760686234199,1.04739807,3792.3,3790.4,0.1702]
[1760686234371,0.04598503,3792.1,3790.6,2.63810478]
[1760686234582,0.04598503,3792.1,3790.6,1.728]
[1760686234784,0.04598503,3792.1,3791.0,28.91719748]
[1760686235005,0.04598503,3792.1,3791.2,2.63768566]
[1760686235211,0.04598503,3792.1,3790.4,0.1702]
[1760686235371,0.04598503,3792.1,3790.9,28.91719748]
[1760686235575,0.469,3792.7,3792.0,0.1965]
[1760686235775,0.469,3792.7,3792.6,2.6367136]
[1760686235991,0.469,3792.7,3792.6,3.0708136]
[1760686236418,0.469,3792.7,3792.6,33.71601108]
[1760686236612,0.469,3792.7,3792.0,0.1965]
[1760686236613,0.469,3792.7,3792.3,1.728]
[1760686236786,0.469,3792.7,3792.6,4.7988136]
[1760686236985,0.469,3792.7,3792.6,1.728]
[1760686237196,0.469,3792.7,3792.6,2.1621]
[1760686237404,0.469,3792.7,3792.6,4.7988136]
[1760686237985,0.469,3792.7,3792.6,3.0708136]
[1760686238194,0.469,3792.7,3792.6,3.64157904]
[1760686238393,0.469,3792.7,3792.4,2.63684237]
[1760686238394,0.469,3792.7,3792.0,0.1965]
[1760686238589,0.469,3792.7,3792.6,2.6367136]
[1760686238793,0.002,3792.8,3792.7,2.63664407]
[1760686238995,0.21560852,3793.1,3793.0,2.63643553]
[1760686239325,0.21560852,3793.1,3793.0,33.28163301]
[1760686239527,0.002,3793.6,3793.3,2.63618895]
[1760686239679,0.002,3794.0,3793.9,4.36381011]
[1760686240081,0.002,3794.4,3794.3,2.63553224]
[1760686240320,0.005,3796.2,3795.1,4.36297668]
[1760686240627,0.005,3796.2,3796.1,2.63428255]
[1760686240810,0.005,3796.2,3796.1,4.54468255]
[1760686241018,0.002,3797.5,3797.4,2.63338073]
[1760686241187,0.002,3797.5,3796.2,1.728]
[1760686241188,0.002,3797.5,3796.6,1.728]
[1760686241388,0.002,3797.5,3796.1,1.14336713]
[1760686241389,0.002,3797.5,3796.1,0.70926713]
[1760686241882,0.002,3797.5,3796.3,2.63408856]
[1760686242103,0.002,3797.5,3797.4,2.74928073]
[1760686242535,0.002,3797.5,3797.4,4.47728073]
[1760686243104,0.002,3797.5,3797.4,33.82857821]
[1760686243537,0.002,3797.5,3797.4,4.47728073]
[1760686243723,0.002,3797.5,3796.6,0.6336]
[1760686243724,0.002,3797.5,3796.3,0.1159]
[1760686243929,0.4358,3797.4,3796.2,0.1312]
[1760686244118,0.4358,3797.4,3795.5,0.4341]
[1760686244119,0.4358,3797.4,3795.5,0.1824]
[1760686244325,0.002,3797.5,3795.6,0.4341]
[1760686244615,0.603,3797.4,3796.6,1.728]
[1760686244818,0.603,3797.4,3796.4,0.1312]
[1760686245022,0.603,3797.4,3796.5,2.634005]
[1760686245248,0.603,3797.4,3797.3,2.63345008]
[1760686245547,0.002,3797.5,3797.4,4.36138073]
[1760686245892,0.002,3797.5,3797.4,1.728]
[1760686246943,0.002,3797.5,3797.0,1.728]
[1760686247128,0.002,3797.5,3797.4,2.63338073]
[1760686247438,0.002,3797.5,3797.3,1.728]
[1760686247620,0.002,3797.5,3797.1,1.728]
[1760686247819,0.002,3797.5,3796.3,2.1621]
[1760686248016,0.002,3797.5,3797.2,2.63345158]
[1760686248208,0.002,3797.5,3796.4,2.63407438]
[1760686248209,0.002,3797.5,3797.4,2.63338073]
[1760686248407,0.002,3797.5,3797.4,4.36138073]
[1760686248608,0.002,3797.5,3797.4,4.79548073]
[1760686249015,1e-08,3797.9,3797.8,3.26670337]
[1760686249211,1e-08,3797.9,3797.8,32.00401332]
[1760686249447,1e-08,3797.9,3797.8,32.43811332]
[1760686249747,0.002,3798.8,3798.7,4.36047953]
[1760686249949,1e-08,3799.8,3799.7,2.63178672]
[1760686250267,1e-08,3799.8,3799.7,4.35978672]
[1760686251166,1e-08,3799.8,3799.7,5.51270792]
[1760686251342,1e-08,3799.8,3799.7,6.14630792]
[1760686251543,1e-08,3799.8,3799.7,6.41060792]
[1760686251744,1e-08,3799.8,3799.7,6.14630792]
[1760686251915,1e-08,3799.8,3799.7,5.42748672]
[1760686252267,1e-08,3799.8,3799.7,8.92490872]
[1760686252446,0.002,3801.3,3801.2,2.63074818]
[1760686252647,0.002,3801.3,3801.2,4.35874818]
[1760686253324,0.002,3801.3,3800.5,3.08451222]
[1760686253325,0.002,3801.3,3800.5,2.63116642]
[1760686253525,0.4344,3801.2,3799.6,1.728]
[1760686253729,0.4344,3801.2,3800.3,1.728]
[1760686254162,0.4344,3801.2,3799.4,0.1965]
[1760686254572,0.4344,3801.2,3798.5,26.24651894]
[1760686254573,0.6336,3801.1,3798.7,2.63247953]
[1760686254863,0.4344,3801.0,3799.2,0.1965]
[1760686255066,0.2299,3800.9,3799.2,0.1965]
[1760686255218,0.002,3801.3,3799.5,1.728]
[1760686255564,0.002,3801.2,3800.9,2.63094496]
[1760686255715,2.781,3801.1,3800.9,2.63094368]
[1760686255920,2.781,3801.1,3800.7,1.728]
[1760686256121,0.002,3801.2,3800.7,1.728]
[1760686256317,0.002,3801.2,3801.1,4.50791739]
[1760686256622,0.002,3801.2,3801.1,5.11803109]
[1760686256842,0.002,3801.2,3801.1,5.57691739]
[1760686257517,0.002,3801.3,3801.1,5.57691739]
[1760686257518,1e-08,3801.3,3801.2,22.17349918]
[1760686257717,1e-08,3801.3,3801.2,18.89180418]
[1760686257919,0.24224737,3803.8,3801.7,27.71404]
[1760686258134,0.1964,3803.8,3801.9,30.73598275]
[1760686258343,0.4333,3803.7,3801.9,34.00206228]
[1760686258546,0.4333,3803.7,3801.9,34.45536228]
[1760686258767,0.1994,3803.8,3801.9,34.45536228]
[1760686258947,1e-08,3802.1,3802.0,18.15948663]
[1760686259119,1e-08,3802.1,3802.0,8.46937963]
[1760686259518,0.002,3804.1,3803.5,2.62909355]
[1760686259730,0.002,3804.1,3803.5,2.62914371]
[1760686259971,0.002,3804.1,3803.6,1.728]
[1760686260134,0.002,3804.1,3803.3,0.1312]
[1760686260334,0.2014,3803.4,3801.2,26.24651894]
[1760686260536,0.4286,3803.3,3801.1,0.4533]
[1760686260749,0.6336,3803.2,3801.2,0.1312]
[1760686260967,1.0226,3803.1,3801.2,0.1312]
[1760686261167,0.6336,3803.0,3801.2,0.1312]
[1760686261376,0.6595,3802.9,3800.8,0.1312]
[1760686261603,0.756,3802.8,3800.4,26.69981894]
[1760686261745,0.756,3802.8,3800.3,0.1312]
[1760686261746,1.0671,3802.7,3800.3,0.1312]
[1760686261945,1.0671,3802.7,3800.6,0.1312]
[1760686261946,0.04585664,3802.6,3800.6,0.1312]
[1760686262187,0.04585664,3802.6,3800.6,1.8592]
[1760686262188,0.4335,3802.5,3800.6,1.8592]
[1760686262344,1.0671,3802.4,3800.0,0.1491]
[1760686262694,1.795,3802.3,3800.3,1.728]
[1760686262857,1.795,3802.3,3801.2,1.728]
[1760686263184,0.4335,3802.2,3800.2,1.728]
[1760686263388,0.2239,3802.9,3800.5,26.24651894]
[1760686263593,0.2239,3802.9,3801.8,2.63030069]
[1760686263594,0.532,3802.8,3801.8,2.63030069]
[1760686263747,2.814,3802.7,3801.9,2.63020514]
[1760686263956,2.814,3802.7,3800.6,2.1813]
[1760686263957,0.4335,3802.6,3800.6,2.1813]
[1760686264153,2.814,3802.7,3800.2,1.728]
[1760686264154,0.4335,3802.5,3800.2,1.728]
[1760686264354,0.6336,3802.4,3800.1,2.63150969]
[1760686264583,0.67945786,3802.2,3799.6,0.28149]
[1760686264885,0.6336,3802.0,3799.6,2.91331988]
[1760686265047,0.6336,3801.8,3799.6,0.28149]
[1760686265247,0.6336,3801.8,3799.0,26.57214643]
[1760686265248,0.6336,3801.6,3799.0,26.57214643]
[1760686265448,0.4335,3801.5,3799.1,0.4533]
[1760686265683,0.6336,3801.4,3799.1,0.4533]
[1760686265870,0.6336,3801.2,3799.4,2.63199197]
[1760686266049,0.4335,3801.1,3799.0,1.9104]
[1760686266377,0.439,3801.0,3799.7,2.63172432]
[1760686266681,0.6631,3800.9,3799.1,0.20595]
[1760686266987,0.634,3802.3,3800.8,2.78012373]
[1760686267186,0.4332,3802.2,3800.2,2.63144045]
[1760686267360,0.4332,3802.2,3800.4,1.728]
[1760686267693,0.4332,3802.1,3800.4,1.728]
[1760686267888,0.449,3802.0,3800.3,0.27805405]
[1760686268045,0.449,3802.0,3641.0,0.0044458]
[1760686268046,0.2299,3801.9,3799.2,0.4533]
[1760686268250,1.0668,3801.8,3799.3,2.185043]
[1760686268490,0.04586873,3801.6,3800.0,1.728]
[1760686268794,0.04586873,3801.6,3798.6,2.95942904]
[1760686268795,1.0668,3801.5,3798.6,0.001]
[1760686269002,0.2299,3800.1,3798.6,0.001]
[1760686269533,1.2848,3800.0,3798.6,0.001]
[1760686270179,0.6336,3799.8,3798.6,0.001]
[1760686270577,0.6336,3799.6,3798.6,0.001]
[1760686270987,0.04589435,3799.4,3798.6,0.001]
[1760686271180,0.47,3799.3,3798.6,0.001]
[1760686271799,0.2237,3799.9,3798.8,1.728]
[1760686271997,2.442,3799.2,3798.6,0.001]
[1760686272401,2.8731,3799.2,3798.6,0.001]
[1760686273804,2.8731,3799.2,3798.8,0.001]
[1760686274019,0.4311,3799.1,3798.8,0.001]
[1760686274190,0.6336,3799.0,3798.8,0.001]
[1760686274617,0.4311,3798.9,3798.8,0.001]
[1760686276126,1.0647,3798.9,3798.8,0.001]
[1760686277640,5.42504094,3798.9,3798.8,0.001]
[1760686278089,8.0341854,3798.9,3798.8,0.001]
[1760686278291,9.32862153,3798.7,3798.6,0.001]
[1760686278514,2.91168646,3798.7,3798.6,0.001]
[1760686278716,2.7927,3798.7,3798.6,0.001]
[1760686278890,6.7937,3798.7,3798.6,0.001]
[1760686279090,9.42617953,3798.7,3798.6,0.001]
[1760686279525,17.01061513,3798.7,3798.6,0.001]
[1760686279747,9.97505613,3798.7,3798.6,0.001]
[1760686280029,9.97505613,3798.7,3797.9,0.001]
[1760686280030,13.42120944,3798.4,3797.9,0.001]
[1760686280352,5.54316404,3798.4,3797.9,0.001]
[1760686280637,6.02019124,3798.4,3797.9,0.001]
[1760686280784,5.1146388,3798.4,3797.9,0.001]
[1760686280984,8.15755337,3798.4,3797.9,0.001]
[1760686281184,12.48839018,3798.4,3797.9,0.001]
[1760686281394,3.31656471,3798.0,3797.9,0.001]
[1760686281591,0.6336,3797.2,3794.5,0.4676]
[1760686281791,2.3616,3797.0,3794.9,0.4676]
[1760686282105,0.6336,3796.6,3795.1,0.32992158]
[1760686282438,0.6336,3796.6,3794.9,0.4676]
[1760686282887,0.6336,3796.6,3795.1,2.63497668]
[1760686283089,0.6336,3796.8,3795.2,0.4676]
[1760686283323,0.0459327,3796.4,3795.4,2.63470749]
[1760686283535,0.0459327,3796.4,3795.5,2.6346893]
[1760686283740,0.0459327,3796.4,3795.5,0.99455881]
[1760686284126,0.0459327,3796.4,3795.5,0.4676]
[1760686284327,0.0459327,3796.4,3795.4,2.63470355]
[1760686284527,0.0459327,3796.4,3795.5,0.4676]
[1760686284847,0.219,3797.5,3796.3,0.1658]
[1760686285162,0.04592675,3797.0,3796.4,0.4676]
[1760686285310,1.933,3797.4,3796.4,0.4676]
[1760686285644,1.933,3797.4,3796.0,0.1658]
[1760686285645,1.1046,3797.3,3796.0,0.1658]
[1760686285817,1.1046,3797.3,3796.1,0.1658]
[1760686286554,0.41322295,3797.3,3796.2,0.4676]
[1760686286709,2.816,3797.2,3796.5,1.728]
[1760686286911,2.816,3797.2,3797.1,0.1491]
[1760686287457,2.816,3797.2,3796.1,0.1658]
[1760686287458,0.6336,3797.1,3796.1,0.1658]
[1760686287804,2.816,3797.2,3796.1,0.1658]
[1760686288043,0.6336,3796.9,3796.1,0.1658]
[1760686288549,0.6336,3796.9,3795.6,0.1658]
[1760686289550,0.6336,3796.9,3795.7,0.4676]
[1760686289841,0.6336,3796.7,3795.0,0.6641]
[1760686290144,1.04688202,3796.7,3795.1,0.4676]
[1760686290368,1.427,3796.6,3795.1,0.4676]
[1760686290649,1.427,3796.6,3795.2,0.50271849]
[1760686290858,1.427,3796.6,3796.1,0.001]
[1760686291009,0.468,3796.5,3796.1,0.001]
[1760686291209,1.427,3796.6,3796.1,0.001]
[1760686291534,0.04592848,3796.9,3796.1,0.001]
[1760686291713,1.691,3796.8,3796.1,0.1668]
[1760686292053,1.691,3796.8,3796.1,0.001]
[1760686292212,2.8296,3796.7,3796.1,0.001]
[1760686292406,0.04592848,3796.9,3796.1,0.001]
[1760686292614,1.6696,3796.8,3796.1,0.1668]
[1760686293336,1.6696,3796.8,3796.1,0.001]
[1760686293516,1.036,3796.8,3796.1,0.001]
[1760686293711,1.036,3796.8,3796.1,0.1668]
[1760686294466,1.036,3796.8,3796.1,2.80101834]
[1760686294667,1.036,3796.8,3796.2,3.1018028]
[1760686294945,1.036,3796.8,3796.7,2.63386625]
[1760686295123,1.036,3796.8,3796.7,3.10146625]
[1760686295447,1.036,3796.8,3796.7,4.82946625]
[1760686295650,1.036,3796.8,3796.7,5.57580923]
[1760686296446,2.111,3797.8,3797.1,2.63357195]
[1760686296629,2.111,3797.8,3797.2,0.1574]
[1760686297343,2.111,3797.8,3796.8,0.1574]
[1760686297544,2.111,3797.8,3797.1,0.1574]
[1760686297749,2.111,3797.8,3796.8,0.1574]
[1760686298116,0.471,3798.2,3796.8,0.1574]
[1760686298117,2.816,3797.7,3796.8,0.1574]
[1760686299328,3.2841,3797.7,3796.5,1.728]
[1760686299530,3.2841,3797.7,3796.4,0.1574]
[1760686299736,2.816,3797.7,3796.6,1.728]
[1760686300026,2.816,3797.7,3796.4,0.83022]
[1760686300246,2.816,3797.7,3796.4,0.625]
[1760686300444,2.816,3797.7,3796.5,0.4676]
[1760686300613,0.1813,3797.6,3796.5,0.4676]
[1760686300814,0.1813,3797.6,3796.4,0.1574]
[1760686301814,2.86191384,3797.7,3796.8,2.63373711]
[1760686302022,2.816,3797.7,3797.6,0.1574]
[1760686302248,2.816,3797.7,3797.6,2.79064204]
[1760686302549,2.816,3797.7,3797.6,0.1574]
[1760686302771,2.816,3797.7,3797.2,0.1574]
[1760686302918,2.816,3797.7,3797.1,1.8854]
[1760686303115,2.816,3797.7,3797.2,0.45190582]
[1760686303428,2.816,3798.0,3797.1,0.1574]
[1760686303747,1.9592,3797.9,3796.4,0.1574]
[1760686304317,0.3951,3797.8,3796.4,2.79146936]
[1760686304623,0.04591253,3797.7,3796.4,2.79146936]
[1760686305017,0.04591253,3797.7,3796.4,0.1574]
[1760686305247,0.6336,3797.6,3796.4,0.1574]
[1760686305953,0.6336,3797.4,3796.1,0.001]
[1760686306170,1.04680338,3797.4,3796.1,0.001]
[1760686306370,1.04680338,3797.4,3796.1,0.1584]
[1760686306665,0.04592054,3797.3,3796.1,0.1584]
[1760686306847,2.816,3797.2,3796.1,1.8864]
[1760686307057,0.3951,3797.1,3796.1,0.001]
[1760686307432,0.3951,3797.6,3796.1,0.1584]
[1760686307631,2.816,3797.5,3796.1,2.79267147]
[1760686307876,2.816,3797.5,3796.1,0.1584]
[1760686308569,2.816,3797.4,3796.6,2.63389223]
[1760686308867,2.816,3797.4,3796.6,0.73098922]
[1760686309040,2.816,3797.4,3796.6,0.4676]
[1760686309252,2.816,3797.4,3796.4,1.728]
[1760686309449,0.3951,3797.3,3796.1,0.1584]
[1760686309789,0.3951,3797.3,3796.1,0.001]
[1760686310133,0.6336,3797.2,3796.1,0.001]
[1760686310368,1.18871457,3797.2,3796.1,0.001]
[1760686310670,0.6336,3797.0,3796.1,0.001]
[1760686310986,1.18871457,3797.0,3796.1,0.001]
[1760686311151,0.6336,3796.7,3796.1,0.001]
[1760686311350,2.3616,3796.5,3796.1,0.001]
[1760686311871,0.3951,3796.4,3796.1,0.001]
[1760686312245,0.6336,3796.5,3796.1,0.001]
[1760686312477,0.3951,3796.3,3796.1,0.001]
[1760686312773,0.3951,3796.3,3792.4,0.2643]
[1760686312774,5.69608518,3796.2,3793.4,2.63613381]
[1760686312994,0.6336,3795.7,3793.7,0.1594]
[1760686313157,0.6336,3795.7,3792.9,0.4357]
[1760686313158,0.6336,3795.3,3792.9,0.4357]
[1760686313342,2.3616,3794.8,3792.6,0.1574]
[1760686313548,2.3616,3794.6,3792.6,0.1574]
[1760686313752,2.91668597,3794.6,3792.6,0.1574]
[1760686313963,0.4104,3794.5,3792.6,0.1574]
[1760686314173,0.6336,3794.1,3792.6,0.1574]
[1760686314389,0.2263,3792.7,3791.4,0.1658]
[1760686314704,1.2174,3792.6,3790.4,0.4357]
[1760686314996,1.2174,3792.6,3789.9,0.56046722]
[1760686314997,0.6336,3792.5,3790.3,0.6322]
[1760686315149,1.36,3792.4,3790.4,0.4357]
[1760686315356,1.36,3792.4,3790.5,1.728]
[1760686315589,0.04597527,3792.2,3790.6,0.23602]
[1760686315752,0.04597527,3792.2,3790.4,0.4357]
[1760686315753,0.04597527,3792.2,3790.5,2.63816572]
[1760686315947,0.04597527,3792.2,3790.4,0.4357]
[1760686316148,2.816,3792.1,3790.6,2.63810478]
[1760686316379,2.816,3792.1,3790.7,0.4357]
[1760686316587,2.816,3792.1,3790.8,3.62232]
[1760686316897,0.27226806,3793.4,3792.0,4.5309308]
[1760686317097,0.04596806,3793.4,3792.0,0.1658]
[1760686317392,1.24,3793.3,3792.3,1.728]
[1760686317755,1.24,3793.3,3793.2,4.36429653]
[1760686317950,1.24,3793.3,3793.2,1.728]
[1760686319052,1.24,3793.3,3793.2,4.80073295]
[1760686319253,1.24,3793.3,3793.2,5.23643295]
[1760686319486,2.542,3794.0,3793.5,1.728]
[1760686319648,2.542,3794.0,3793.7,1.728]
[1760686319853,2.542,3794.0,3793.3,1.728]
[1760686320088,2.542,3794.0,3793.4,2.6361089]
[1760686320293,2.542,3794.0,3791.9,0.1658]
[1760686320294,0.6367,3793.9,3791.9,0.1658]
[1760686320498,0.6336,3793.8,3791.5,0.1658]
[1760686320792,0.6336,3793.8,3790.1,0.4357]
[1760686320989,0.4104,3793.7,3790.1,0.4357]
[1760686321209,0.4104,3793.7,3789.9,0.1658]
[1760686321210,0.05,3793.1,3789.9,0.1658]
[1760686321372,0.05,3793.1,3789.6,0.4347]
[1760686321373,0.6336,3792.6,3789.6,0.001]
[1760686321577,0.007,3792.5,3789.6,0.4347]
[1760686321783,0.04598542,3791.9,3790.1,2.63844779]
[1760686321973,0.04598542,3791.9,3790.1,0.46034478]
[1760686321974,1.2685,3791.8,3790.1,0.46034478]
[1760686322198,1.2685,3791.8,3790.4,2.63820832]
[1760686322404,1.2685,3791.8,3790.1,0.46034478]
[1760686322605,0.6336,3791.6,3789.6,0.4347]
[1760686322787,0.6336,3791.4,3789.7,1.728]
[1760686323107,0.6336,3791.4,3790.1,2.638423]
[1760686323308,0.6336,3791.4,3789.7,2.1617]
[1760686323522,0.6336,3791.2,3789.6,0.001]
[1760686324013,0.6336,3790.8,3789.6,0.001]
[1760686324228,0.2261,3789.7,3789.6,0.001]
[1760686324378,2.817,3789.7,3789.6,0.001]
[1760686326328,2.818,3789.7,3789.6,0.001]
[1760686326478,3.8499,3789.7,3789.6,0.001]
[1760686326814,2.3616,3789.6,3787.9,0.011]
[1760686327183,0.6336,3789.4,3788.8,0.001]
[1760686327381,0.8634,3788.9,3788.8,0.001]
[1760686327825,1.30312378,3788.9,3788.8,0.001]
[1760686328021,1.76730698,3788.9,3788.8,0.001]
[1760686328318,1.71730698,3788.9,3788.8,0.001]
[1760686328816,1.76730698,3788.9,3788.8,0.001]
[1760686329137,1.71730698,3788.9,3788.8,0.001]
[1760686329435,6.31430698,3788.9,3788.8,0.001]
[1760686329782,8.95359542,3788.9,3788.8,0.001]
[1760686329992,8.95359542,3788.9,3787.9,0.011]
[1760686329993,0.6836,3788.0,3787.9,0.011]
[1760686330192,6.4196,3788.0,3787.9,0.007]
[1760686330424,6.8093,3788.0,3787.9,0.007]
[1760686330639,1.06934165,3788.0,3787.9,0.007]
[1760686330843,0.04604165,3788.0,3787.9,0.007]
[1760686330995,1.84574165,3788.0,3787.9,0.007]
[1760686331197,2.47934165,3788.0,3787.9,0.007]
[1760686331535,0.04604165,3788.0,3787.9,0.007]
[1760686331831,3.25574165,3788.0,3787.9,0.003]
[1760686331991,13.81759417,3788.0,3787.9,0.003]
[1760686332195,13.11034317,3788.0,3787.9,0.003]
[1760686332606,12.83654761,3787.7,3783.9,0.1604]
[1760686332806,0.6336,3786.6,3784.3,0.1604]
[1760686333033,2.4116,3786.4,3784.3,0.1604]
[1760686333232,2.4116,3786.4,3783.5,0.2295]
[1760686333233,0.6336,3785.8,3783.5,0.2295]
[1760686333543,0.6336,3785.2,3782.6,0.2295]
[1760686333703,1.728,3785.6,3782.6,0.2295]
[1760686333704,0.6336,3784.8,3782.7,0.4337]
[1760686334038,0.8344,3785.1,3782.7,0.4337]
[1760686334039,0.6336,3784.6,3782.7,0.4337]
[1760686334539,0.6336,3785.1,3784.5,0.2295]
[1760686334703,1.23506359,3785.2,3784.0,0.6632]
[1760686334904,0.6336,3785.1,3783.7,0.2295]
[1760686335335,0.6336,3785.1,3783.6,0.2295]
[1760686335509,0.04606359,3785.2,3783.8,0.4337]
[1760686335705,1.555,3785.1,3783.9,1.728]
[1760686335930,1.555,3785.1,3783.8,26.82790382]
[1760686335931,1.555,3785.1,3784.1,1.728]
[1760686336188,1.19,3787.6,3785.0,0.2295]
[1760686336349,0.04605196,3786.7,3785.1,0.4337]
[1760686336671,0.04605196,3786.7,3785.5,1.728]
[1760686336964,0.04605196,3786.7,3785.1,0.4337]
[1760686336965,0.04605196,3786.7,3785.0,0.2295]
[1760686337116,0.04605196,3786.7,3785.6,0.4337]
[1760686337452,0.453,3786.6,3785.1,2.1617]
[1760686337665,0.453,3786.6,3785.5,2.64165896]
[1760686337952,0.453,3786.6,3785.0,0.2295]
[1760686338176,0.05,3787.9,3785.1,0.4337]
[1760686338312,0.0460478,3786.8,3785.7,26.39420382]
[1760686338514,1.19,3788.0,3787.2,2.64045683]
[1760686338744,0.064,3787.9,3787.3,0.2295]
[1760686338973,0.064,3787.9,3787.4,0.4337]
[1760686339272,0.064,3787.9,3787.5,0.4337]
[1760686339611,0.064,3787.9,3787.8,2.64005491]
[1760686339850,0.064,3787.9,3787.8,0.4337]
[1760686340077,0.0460223,3789.1,3787.9,2.63998521]
[1760686340237,0.69341708,3790.4,3789.0,0.2295]
[1760686340437,1.45407138,3790.7,3789.1,0.4337]
[1760686340438,3.2690686,3790.3,3789.1,0.4337]
[1760686340643,2.855,3790.3,3789.2,4.3670565]
[1760686340876,2.855,3790.3,3789.2,2.23102565]
[1760686341179,0.91491474,3791.3,3790.2,2.85698183]
[1760686341180,2.854,3791.2,3790.2,2.85698183]
[1760686341375,0.69341708,3791.0,3790.2,0.2186]
[1760686341675,0.69341708,3790.7,3789.2,0.4404]
[1760686341860,0.84601708,3791.0,3789.2,0.4404]
[1760686342061,0.1526,3791.0,3789.2,0.77130371]
[1760686342370,0.6336,3790.8,3789.2,0.4404]
[1760686342579,0.6336,3791.0,3789.3,2.63897923]
[1760686342793,0.6336,3790.8,3789.2,0.4404]
[1760686343282,0.04599953,3790.9,3789.2,0.4404]
[1760686343453,0.6336,3790.8,3789.2,0.4404]
[1760686343658,0.6336,3790.8,3789.8,1.728]
[1760686343855,0.6336,3790.8,3789.2,26.83460382]
[1760686343856,0.6336,3790.8,3789.2,0.4404]
[1760686344082,2.854,3791.2,3789.4,1.728]
[1760686344378,0.6336,3791.1,3789.5,0.4404]
[1760686344560,0.6336,3791.1,3789.6,2.63880092]
[1760686344745,0.6336,3791.1,3789.5,0.4404]